Workbook

Sheet Intro
A6: Product Pricing Tool for Retail Sales
A7: Version 1.0 | G7: 2024-08-01
A9: Ty Wolaver | H9: Becky Bowling
A10: Extension Specialist | H10: Extension Specialist
A11: Office: (931) 993-2466 | H11: Office: (865) 974-7016
A12: Email: tyw@utk.edu | H12: Email: rbowlin2@utk.edu
A32: This Spreadsheet was developed and is supported by the UT Center of Farm Management
A37: For additional information / assistance:
A38: Farm Management Specialist
A39: The MANAGE Program | Department of Agricultural and Resource Economics (tennessee.edu)

Sheet Step (hidden)

Sheet Step 1
C2: Product | D2: Price | E2: Starting Price
C3: NA | D3: 0 | E3: =ROUNDUP(D3,0) -> 0 | F3: Do Not remove this line
B4: 1 | C4: Bone-In Ribeye Roast | E4: =ROUNDUP(D4,0) -> 0 | G4: Step 1 Instructions | M4: Intro
B5: 2 | C5: Bone-In Ribeye Steak | D5: 11.37 | E5: 12 | M5: Step 2
B6: 3 | C6: Bnls Ribeye Roast | D6: 9.94 | E6: 10 | M6: Step 3
B7: 4 | C7: Bnls Ribeye Steak | D7: 10.09 | E7: 11 | M7: Step 4
B8: 5 | C8: T-Bone Steak | D8: 8.6 | E8: 9
B9: 6 | C9: Porterhouse Steak | D9: 11.51 | E9: 12
B10: 7 | C10: Tenderloin | D10: 12.7 | E10: 13
B11: 8 | C11: Filet Mignon | D11: 21.78 | E11: 22
B12: 9 | C12: Loin, Bnls | D12: 12.99 | E12: 13
B13: 10 | C13: Bone-In Strip Steak | D13: 8.96 | E13: 9
B14: 11 | C14: Bnls New York Strip Steak | D14: 10.58 | E14: 11
B15: 12 | C15: Beef Backribs | D15: 4.01 | E15: 5
B16: 13 | C16: Sirloin Roast | E16: 0 | G16: lswbfrtl.pdf (usda.gov)
B17: 14 | C17: Sirloin Steak Bnls Sirloin Roast | D17: 7.96 | E17: 8
B18: 15 | C18: Bnls Sirloin Steak | D18: 8.04 | E18: 9
B19: 16 | C19: Sirloin Tip Roast | D19: 5.79 | E19: 6
B20: 17 | C20: Sirloin Tip Steak | D20: 6.23 | E20: 7
B21: 18 | C21: Bnls Top Sirloin Roast | D21: 5.14 | E21: 6
B22: 19 | C22: Bnls Top Sirloin Steak | D22: 8.28 | E22: 9
B23: 20 | C23: Top Round Roast | D23: 5.91 | E23: 6
B24: 21 | C24: Top Round Steak | D24: 6.09 | E24: 7
B25: 22 | C25: Bottom Round Roast | D25: 5.96 | E25: 6
B26: 23 | C26: Bottom Round Steak | D26: 5.48 | E26: 6
B27: 24 | C27: Eye Of Round Roast | D27: 5.86 | E27: 6
B28: 25 | C28: Eye Of Round Steak | D28: 6.22 | E28: 7
B29: 26 | C29: Rump Roast | D29: 5.39 | E29: 6
B30: 27 | C30: Rump Steak | D30: 3.99 | E30: 4
B31: 28 | C31: Chuck/Shldr/Arm Roast | D31: 6.26 | E31: 7
B32: 29 | C32: Chuck/Shldr/Arm Steak | D32: 6.18 | E32: 7
B33: 30 | C33: London Broil | D33: 6.44 | E33: 7
B34: 31 | C34: Brisket | D34: 4.51 | E34: 5
B35: 32 | C35: Brisket, Flat | E35: 0
B36: 33 | C36: Corned Beef Brisket | D36: 4.99 | E36: 5
B37: 34 | C37: Corned Beef Flat | E37: 0
B38: 35 | C38: Beef Short Ribs | D38: 7.62 | E38: 8
B39: 36 | C39: Flat Iron Steak | E39: 0
B40: 37 | E40: 0
B41: 38 | C41: Flank Steak | D41: 8.78 | E41: 9
B42: 39 | C42: Minute/Cube Steaks | D42: 6.62 | E42: 7
B43: 40 | C43: Stew Meat | D43: 6.69 | E43: 7
B44: 41 | C44: Ground Round | D44: 5.69 | E44: 6
B45: 42 | C45: Ground Chuck | D45: 4.42 | E45: 5
B46: 43 | C46: Ground Sirloin | D46: 5.1 | E46: 6
B47: 44 | C47: Ground Beef 90% Or More | D47: 5.97 | E47: 6
B48: 45 | C48: Ground Beef 80-89% | D48: 4.53 | E48: 5
B49: 46 | C49: Ground Beef 70-79% | D49: 3.56 | E49: 4
B50: 47 | C50: Beef Patties | D50: 6.24 | E50: 7
B51: 48 | C51: Tri-Tip | D51: 7.78 | E51: 8
B52: 49 | C52: Skirt Steak | D52: 11.67 | E52: 12
B53: 50 | C53: Skirt Steak | D53: 8.39 | E53: 9
E54: 0
E2169: =ROUNDUP(D2169,0) -> 0
E2170: 0
E2171: 0
E2172: 0
E2173: 0
E2174: 0
E2175: 0
E2176: 0
E2177: 0
E2178: 0
E2179: 0
E2180: =ROUNDUP(D2180,0) -> 0
E2181: 0
E2182: 0
E2183: 0
E2184: 0
E2185: 0
E2186: 0
E2187: 0
E2188: 0
E2189: 0
E2190: 0
E2191: 0
E2192: 0
E2193: 0
E2194: 0
E2195: 0
E2196: 0
E2197: 0
E2198: 0
E2199: 0
E2200: 0
E2201: 0
E2202: 0
E2203: 0
E2204: 0
E2205: 0
E2206: 0
E2207: 0
E2208: 0
E2209: 0
E2210: 0
E2211: 0
E2212: 0
E2213: 0
E2214: 0
E2215: 0
E2216: 0
E2217: 0
E2218: 0
E2219: 0
E2220: 0
E2221: 0
E2222: 0
E2223: 0
E2224: 0
E2225: 0
E2226: 0
E2227: 0
E2228: 0
E2229: 0
E2230: 0
E2231: 0
E2232: 0
E2233: 0
E2234: 0
E2235: 0
E2236: 0
E2237: 0
E2238: 0
E2239: 0
E2240: 0
E2241: 0
E2242: 0
E2243: 0
E2244: =ROUNDUP(D2244,0) -> 0
E2245: 0
E2246: 0
E2247: 0
E2248: 0
E2249: 0
E2250: 0
E2251: 0
E2252: 0
E2253: 0
E2254: 0
E2255: 0
E2256: 0
E2257: 0
E2258: 0
E2259: 0
E2260: 0
E2261: 0
E2262: 0
E2263: 0
E2264: 0
E2265: 0
E2266: 0
E2267: 0
E2268: 0
E2269: 0
E2270: 0
E2271: 0
E2272: 0
E2273: 0
E2274: 0
E2275: 0
E2276: 0
E2277: 0
E2278: 0
E2279: 0
E2280: 0
E2281: 0
E2282: 0
E2283: 0
E2284: 0
E2285: 0
E2286: 0
E2287: 0
E2288: 0
E2289: 0
E2290: 0
E2291: 0
E2292: 0
E2293: 0
E2294: 0
E2295: 0
E2296: 0
E2297: 0
E2298: 0
E2299: 0
E2300: 0
E2301: 0
E2302: 0
E2303: 0
E2304: 0
E2305: 0
E2306: 0
E2307: 0
E2308: =ROUNDUP(D2308,0) -> 0
E2309: 0
E2310: 0
E2311: 0
E2312: 0
E2313: 0
E2314: 0
E2315: 0
... 1153 more rows

Sheet USDAData (hidden)
A1: Column1 | B1: Column5
A2: Bone-In Ribeye Roast
A3: Bone-In Ribeye Steak | B3: 11.37
A4: Bnls Ribeye Roast | B4: 9.94
A5: Bnls Ribeye Steak | B5: 10.09
A6: T-Bone Steak | B6: 8.6
A7: Porterhouse Steak | B7: 11.51
A8: Tenderloin | B8: 12.7
A9: Filet Mignon | B9: 21.78
A10: Loin, Bnls | B10: 12.99
A11: Bone-In Strip Steak | B11: 8.96
A12: Bnls New York Strip Steak | B12: 10.58
A13: Beef Backribs | B13: 4.01
A14: Sirloin Roast
A15: Sirloin Steak Bnls Sirloin Roast | B15: 7.96
A16: Bnls Sirloin Steak | B16: 8.04
A17: Sirloin Tip Roast | B17: 5.79
A18: Sirloin Tip Steak | B18: 6.23
A19: Bnls Top Sirloin Roast | B19: 5.14
A20: Bnls Top Sirloin Steak | B20: 8.28
A21: Top Round Roast | B21: 5.91
A22: Top Round Steak | B22: 6.09
A23: Bottom Round Roast | B23: 5.96
A24: Bottom Round Steak | B24: 5.48
A25: Eye Of Round Roast | B25: 5.86
A26: Eye Of Round Steak | B26: 6.22
A27: Rump Roast | B27: 5.39
A28: Rump Steak | B28: 3.99
A29: Chuck/Shldr/Arm Roast | B29: 6.26
A30: Chuck/Shldr/Arm Steak | B30: 6.18
A31: London Broil | B31: 6.44
A32: Brisket | B32: 4.51
A33: Brisket, Flat
A34: Corned Beef Brisket | B34: 4.99
A35: Corned Beef Flat
A36: Beef Short Ribs | B36: 7.62
A37: Flat Iron Steak
A39: Flank Steak | B39: 8.78
A40: Minute/Cube Steaks | B40: 6.62
A41: Stew Meat | B41: 6.69
A42: Ground Round | B42: 5.69
A43: Ground Chuck | B43: 4.42
A44: Ground Sirloin | B44: 5.1
A45: Ground Beef 90% Or More | B45: 5.97
A46: Ground Beef 80-89% | B46: 4.53
A47: Ground Beef 70-79% | B47: 3.56
A48: Beef Patties | B48: 6.24
A49: Tri-Tip | B49: 7.78
A50: Skirt Steak | B50: 11.67

Sheet Step 2
C3: Product | D3: Quantity Produced | E3: Quantity Sold (expected) | F3: Your Current Price
B4: 1 | C4: Ground Beef 80-89% | D4: 2000 | E4: 1900 | F4: 5 | K4: Step 2 Instructions | R4: Intro
B5: 2 | C5: Bone-In Ribeye Steak | D5: 40 | E5: 40 | F5: 21 | K5: A) Select your product from the dropdown box. For it to appear, it must be present in the "Product" column of the Reference Prices table in Step 1. | R5: Step 1
B6: 3 | C6: Bnls Ribeye Roast | D6: 150 | E6: 150 | F6: 9.5 | R6: Step 3
B7: 4 | C7: Bnls Ribeye Steak | D7: 100 | E7: 95 | F7: 11 | R7: Step 4
B8: 5 | C8: Eye Of Round Roast | D8: 75 | E8: 70 | F8: 10.5
B9: 6 | C9: Sirloin Tip Steak | D9: 300 | E9: 250 | F9: 6 | K9: B) In the Quantity Produced Column, enter the amount of product you are attempting to price. It should be in the same units of production from step one prices. (i.e. if you are pricing beef and it is priced by pound in Step 1, you should enter the quantity you produced in pounds here)
B10: 7 | C10: NA | D10: 0 | E10: 0 | F10: 0
B11: 8 | C11: NA | D11: 0 | E11: 0 | F11: 0
B12: 9 | C12: NA | D12: 0 | E12: 0 | F12: 0
B13: 10 | C13: NA | D13: 0 | E13: 0 | F13: 0
B14: 11 | C14: NA | D14: 0 | E14: 0 | F14: 0 | K14: ***In Step 3, you are going to enter in your costs of production. The quantities you enter here should only be what you produced during the time you accrued those costs. ***
B15: 12 | C15: NA | D15: 0 | E15: 0 | F15: 0
B16: 13 | C16: NA | D16: 0 | E16: 0 | F16: 0
B17: 14 | C17: NA | D17: 0 | E17: 0 | F17: 0
B18: 15 | C18: NA | D18: 0 | E18: 0 | F18: 0
B19: 16 | C19: NA | D19: 0 | E19: 0 | F19: 0 | K19: C) In the Quantity Sold (expected) column, enter the quantity of each cut of beef you expect to sell.
B20: 17 | C20: NA | D20: 0 | E20: 0 | F20: 0
B21: 18 | C21: NA | D21: 0 | E21: 0 | F21: 0
B22: 19 | C22: NA | D22: 0 | E22: 0 | F22: 0 | K22: D) Your Current Price is not a necessary step to completing the model, but if you have a price you sold your product for in the previous year or production cycle, entering it here will show you differences in revenue when you complete the pricing run. If you have no previous price, just put 0.
B23: 20 | C23: NA | D23: 0 | E23: 0 | F23: 0
B24: Model cannot currently handle more than 20 products. For questions contact Ty Wolaver (tyw@utk.edu)

Sheet Step 3
B2: Costs
B3: Input | C3: Cost per Unit | D3: Number Used | E3: Total Cost | G3: Total Cost | H3: =SUM(E4:E1048576) -> 33763.38 | J3: Step 3 Instructions
B4: Labor | C4: 15 | D4: =50.79*26 -> 1320.54 | E4: =D4*C4 -> 19808.1 | G4: Profit Margin Desired | H4: 0.1 | J4: A) Label all your costs by category into the Inputs Column | R4: Intro
B5: Hay | C5: 56.82 | D5: 139.5 | E5: =D5*C5 -> 7926.39 | G5: Cost with Profit Margin | H5: =H3*(1+H4) -> 37139.718 | J5: B) List your cost per unit in the Cost Per Column (i.e. if labor is $15 an hour, enter $15 in the Cost per Unit for labor) | R5: Step 1
B6: Mileage | C6: 0.625 | D6: 98 | E6: =D6*C6 -> 61.25 | R6: Step 2
B7: Processing | C7: 1 | D7: =1810.52+757.12 -> 2567.64 | E7: =D7*C7 -> 2567.64 | G7: Alternative 1 to Step 3 Instructions | J7: C) Enter the quantity used of each input into the Number Used column (i.e. if you used 10 hours of labor, enter 10 in the Number Used column) | R7: Step 4
B8: Calves | C8: 425 | D8: 8 | E8: =D8*C8 -> 3400 | G8: A) After finding your cost of production from your records, enter in the total cost into Total Cost Determined Elsewhere cell highlighted in blue.
E9: =D9*C9 -> 0 | J9: D) Enter your desired profit margin into the Profit Margin Desired cell highlighted in green
E10: 0
E11: 0
E12: 0 | G12: B) Enter in your desired profit margin into Profit Margin Desired (green) | J12: This model is not designed to effectively keep up with costs. For that, a proper record keeping system is recommended. For help setting up a record keeping system, reach out to your local Extension Specialist - Farm Management. To find your local agent visit:
E13: 0
E14: 0 | G14: Total Cost of Production Override | H14: 0
E15: 0
E16: 0 | G16: Cost with Profit Margin | H16: =IF(H14>0,(H14*(1+H4)),H3*(1+H4)) -> 37139.718 | J16: https://farmmanagement.tennessee.edu/the-manage-program/
E17: 0
E18: 0 | G18: Alternative 2 to Step 3 Instructions | J18: WARNING
E19: 0 | G19: If you already know the dollar amount of revenue you would like to receive from the sale of your product, you can enter that value into Total Revenue Determined Elsewhere highlighted in (green) | J19: Once you have entered a value into the Total Cost Production Override cell, it will override the Total Cost cell that is a sum of all costs entered. To undo this function, set Total Cost of Production Override to 0.
E20: 0
E21: 0
E22: 0
E23: 0
E24: 0 | G24: Guaranteed Revenue Override | H24: 0 | J24: Once you have entered a value into Guaranteed Revenue Override, it will override both the Total Cost cell and the Total Cost of Production Override cell and will not be affected by a Profit Margin entered. To undo this function, set the Guaranteed Revenue Override to 0.
E25: 0
E26: 0
E27: 0
E28: 0
E29: 0
E30: 0
E31: 0
E32: 0
E33: 0
E34: 0
E35: 0
E36: 0
E37: 0
E38: 0
E39: 0
E40: 0
E41: 0
E42: 0
E43: 0
E44: 0
E45: 0
E46: 0
E47: 0
E48: 0
E49: 0
E50: 0

Sheet Step 4
C1: 1 | D1: 2 | E1: 3 | F1: 4 | G1: 5 | H1: 6 | I1: 7 | J1: 8 | K1: 9 | L1: 10 | M1: 11 | N1: 12 | O1: 13 | P1: 14 | Q1: 15 | R1: 16 | S1: 17 | T1: 18 | U1: 19 | V1: 20
B2: Product | C2: ='Step 2'!$C$4 -> Ground Beef 80-89% | D2: ='Step 2'!$C$5 -> Bone-In Ribeye Steak | E2: ='Step 2'!$C$6 -> Bnls Ribeye Roast | F2: ='Step 2'!$C$7 -> Bnls Ribeye Steak | G2: ='Step 2'!$C$8 -> Eye Of Round Roast | H2: ='Step 2'!$C$9 -> Sirloin Tip Steak | I2: ='Step 2'!$C$10 -> NA | J2: ='Step 2'!$C$11 -> NA | K2: ='Step 2'!$C$12 -> NA | L2: ='Step 2'!$C$13 -> NA | M2: ='Step 2'!$C$14 -> NA | N2: ='Step 2'!$C$15 -> NA | O2: ='Step 2'!$C$16 -> NA | P2: ='Step 2'!$C$17 -> NA | Q2: ='Step 2'!$C$18 -> NA | R2: ='Step 2'!$C$19 -> NA | S2: ='Step 2'!$C$20 -> NA | T2: ='Step 2'!$C$21 -> NA | U2: ='Step 2'!$C$22 -> NA | V2: ='Step 2'!$C$23 -> NA
B3: Average National Price | C3: =VLOOKUP(C2,'Step 1'!$C$3:$D$1048576,2,FALSE) -> 4.53 | D3: =VLOOKUP(D2,'Step 1'!$C$3:$D$1048576,2,FALSE) -> 11.37 | E3: =VLOOKUP(E2,'Step 1'!$C$3:$D$1048576,2,FALSE) -> 9.94 | F3: =VLOOKUP(F2,'Step 1'!$C$3:$D$1048576,2,FALSE) -> 10.09 | G3: =VLOOKUP(G2,'Step 1'!$C$3:$D$1048576,2,FALSE) -> 5.86 | H3: =VLOOKUP(H2,'Step 1'!$C$3:$D$1048576,2,FALSE) -> 6.23 | I3: =VLOOKUP(I2,'Step 1'!$C$3:$D$1048576,2,FALSE) -> 0 | J3: =VLOOKUP(J2,'Step 1'!$C$3:$D$1048576,2,FALSE) -> 0 | K3: =VLOOKUP(K2,'Step 1'!$C$3:$D$1048576,2,FALSE) -> 0 | L3: =VLOOKUP(L2,'Step 1'!$C$3:$D$1048576,2,FALSE) -> 0 | M3: =VLOOKUP(M2,'Step 1'!$C$3:$D$1048576,2,FALSE) -> 0 | N3: =VLOOKUP(N2,'Step 1'!$C$3:$D$1048576,2,FALSE) -> 0 | O3: =VLOOKUP(O2,'Step 1'!$C$3:$D$1048576,2,FALSE) -> 0 | P3: =VLOOKUP(P2,'Step 1'!$C$3:$D$1048576,2,FALSE) -> 0 | Q3: =VLOOKUP(Q2,'Step 1'!$C$3:$D$1048576,2,FALSE) -> 0 | R3: =VLOOKUP(R2,'Step 1'!$C$3:$D$1048576,2,FALSE) -> 0 | S3: =VLOOKUP(S2,'Step 1'!$C$3:$D$1048576,2,FALSE) -> 0 | T3: =VLOOKUP(T2,'Step 1'!$C$3:$D$1048576,2,FALSE) -> 0 | U3: =VLOOKUP(U2,'Step 1'!$C$3:$D$1048576,2,FALSE) -> 0 | V3: =VLOOKUP(V2,'Step 1'!$C$3:$D$1048576,2,FALSE) -> 0
B4: Your Price | C4: 5 | D4: 12 | E4: 14 | F4: 13 | G4: 6 | H4: 7 | I4: 0 | J4: 0 | K4: 0 | L4: 0 | M4: 0 | N4: 0 | O4: 0 | P4: 0 | Q4: 0 | R4: 0 | S4: 0 | T4: 0 | U4: 0 | V4: 0
B6: USDA
C7: =C2 -> Ground Beef 80-89% | D7: Bone-In Ribeye Steak | E7: Bnls Ribeye Roast | F7: Bnls Ribeye Steak | G7: Eye Of Round Roast | H7: Sirloin Tip Steak | I7: =I2 -> NA | J7: NA | K7: NA | L7: NA | M7: NA | N7: NA | O7: NA | P7: NA | Q7: NA | R7: NA | S7: NA | T7: NA | U7: NA | V7: NA
A8: 1 | B8: =TRANSPOSE(C2:V2) -> Ground Beef 80-89% | C8: =IF($C$3>0,$C$3/C3,0) -> 1 | D8: =IF($C$3>0,$C$3/D3,0) -> 0.3984168865 | E8: 0.4557344064 | F8: 0.4489593657 | G8: =IF($C$3>0,$C$3/G3,0) -> 0.7730375427 | H8: =IF($C$3>0,$C$3/H3,0) -> 0.7271268058 | I8: =IF($C$3>0,$C$3/I3,0) -> 
A9: 2 | B9: Bone-In Ribeye Steak | C9: =IF($D$3>0,$D$3/C3,0) -> 2.509933775 | D9: =IF($D$3>0,$D$3/D3,0) -> 1 | E9: 1.143863179 | F9: 1.126858276 | G9: =IF($D$3>0,$D$3/G3,0) -> 1.940273038 | H9: =IF($D$3>0,$D$3/H3,0) -> 1.825040128
A10: 3 | B10: Bnls Ribeye Roast | C10: =IF($E$3>0,$E$3/C3,0) -> 2.194260486 | D10: =IF($E$3>0,$E$3/D3,0) -> 0.874230431 | E10: 1 | F10: 0.9851337958 | G10: =IF($E$3>0,$E$3/G3,0) -> 1.696245734 | H10: =IF($E$3>0,$E$3/H3,0) -> 1.595505618
A11: 4 | B11: Bnls Ribeye Steak | C11: =IF($F$3>0,$F$3/C3,0) -> 2.227373068 | D11: =IF($F$3>0,$F$3/D3,0) -> 0.8874230431 | E11: 1.015090543 | F11: 1 | G11: =IF($F$3>0,$F$3/G3,0) -> 1.721843003 | H11: =IF($F$3>0,$F$3/H3,0) -> 1.619582665
A12: 5 | B12: Eye Of Round Roast | C12: =IF($G$3>0,$G$3/C3,0) -> 1.293598234 | D12: =IF($G$3>0,$G$3/D3,0) -> 0.5153913808 | E12: 0.5895372233 | F12: 0.5807730426 | G12: =IF($G$3>0,$G$3/G3,0) -> 1 | H12: 0.9406099518
A13: 6 | B13: Sirloin Tip Steak | C13: =IF($H$3>0,$H$3/C3,0) -> 1.375275938 | D13: =IF($H$3>0,$H$3/D3,0) -> 0.5479331574 | E13: 0.6267605634 | F13: 0.6174430129 | G13: =IF($H$3>0,$H$3/G3,0) -> 1.063139932 | H13: 1
A14: 7 | B14: NA | C14: =IF($I$3>0,$I$3/C3,0) -> 0 | D14: =IF($I$3>0,$I$3/D3,0) -> 0 | E14: 0 | F14: 0 | G14: =IF($I$3>0,$I$3/G3,0) -> 0 | H14: 0 | I14: 0 | J14: 0 | K14: 0 | L14: 0 | M14: 0 | N14: 0 | O14: 0 | P14: 0 | Q14: 0 | R14: 0 | S14: 0 | T14: 0 | U14: 0 | V14: 0
A15: 8 | B15: NA | C15: =IF($J$3>0,$J$3/C3,0) -> 0 | D15: =IF($J$3>0,$J$3/D3,0) -> 0 | E15: 0 | F15: 0 | G15: =IF($J$3>0,$J$3/G3,0) -> 0 | H15: 0 | I15: 0 | J15: 0 | K15: 0 | L15: 0 | M15: 0 | N15: 0 | O15: 0 | P15: 0 | Q15: 0 | R15: 0 | S15: 0 | T15: 0 | U15: 0 | V15: 0
A16: 9 | B16: NA | C16: =IF($K$3>0,$K$3/C3,0) -> 0 | D16: =IF($K$3>0,$K$3/D3,0) -> 0 | E16: 0 | F16: 0 | G16: =IF($K$3>0,$K$3/G3,0) -> 0 | H16: 0 | I16: 0 | J16: 0 | K16: 0 | L16: 0 | M16: 0 | N16: 0 | O16: 0 | P16: 0 | Q16: 0 | R16: 0 | S16: 0 | T16: 0 | U16: 0 | V16: 0
A17: 10 | B17: NA | C17: =IF($L$3>0,$L$3/C3,0) -> 0 | D17: =IF($L$3>0,$L$3/D3,0) -> 0 | E17: 0 | F17: 0 | G17: =IF($L$3>0,$L$3/G3,0) -> 0 | H17: 0 | I17: 0 | J17: 0 | K17: 0 | L17: 0 | M17: 0 | N17: 0 | O17: 0 | P17: 0 | Q17: 0 | R17: 0 | S17: 0 | T17: 0 | U17: 0 | V17: 0
A18: 11 | B18: NA | C18: =IF($M$3>0,$M$3/C3,0) -> 0 | D18: =IF($M$3>0,$M$3/D3,0) -> 0 | E18: 0 | F18: 0 | G18: =IF($M$3>0,$M$3/G3,0) -> 0 | H18: 0 | I18: 0 | J18: 0 | K18: 0 | L18: 0 | M18: 0 | N18: 0 | O18: 0 | P18: 0 | Q18: 0 | R18: 0 | S18: 0 | T18: 0 | U18: 0 | V18: 0
A19: 12 | B19: NA | C19: =IF($N$3>0,$N$3/C3,0) -> 0 | D19: =IF($N$3>0,$N$3/D3,0) -> 0 | E19: 0 | F19: 0 | G19: =IF($N$3>0,$N$3/G3,0) -> 0 | H19: 0 | I19: 0 | J19: 0 | K19: 0 | L19: 0 | M19: 0 | N19: 0 | O19: 0 | P19: 0 | Q19: 0 | R19: 0 | S19: 0 | T19: 0 | U19: 0 | V19: 0
A20: 13 | B20: NA | C20: =IF($O$3>0,$O$3/C3,0) -> 0 | D20: =IF($O$3>0,$O$3/D3,0) -> 0 | E20: 0 | F20: 0 | G20: =IF($O$3>0,$O$3/G3,0) -> 0 | H20: 0 | I20: 0 | J20: 0 | K20: 0 | L20: 0 | M20: 0 | N20: 0 | O20: 0 | P20: 0 | Q20: 0 | R20: 0 | S20: 0 | T20: 0 | U20: 0 | V20: 0
A21: 14 | B21: NA | C21: =IF($P$3>0,$P$3/C3,0) -> 0 | D21: =IF($P$3>0,$P$3/D3,0) -> 0 | E21: 0 | F21: 0 | G21: =IF($P$3>0,$P$3/G3,0) -> 0 | H21: 0 | I21: 0 | J21: 0 | K21: 0 | L21: 0 | M21: 0 | N21: 0 | O21: 0 | P21: 0 | Q21: 0 | R21: 0 | S21: 0 | T21: 0 | U21: 0 | V21: 0
A22: 15 | B22: NA | C22: =IF($Q$3>0,$Q$3/C3,0) -> 0 | D22: =IF($Q$3>0,$Q$3/D3,0) -> 0 | E22: 0 | F22: 0 | G22: =IF($Q$3>0,$Q$3/G3,0) -> 0 | H22: 0 | I22: 0 | J22: 0 | K22: 0 | L22: 0 | M22: 0 | N22: 0 | O22: 0 | P22: 0 | Q22: 0 | R22: 0 | S22: 0 | T22: 0 | U22: 0 | V22: 0
A23: 16 | B23: NA | C23: =IF($R$3>0,$R$3/C3,0) -> 0 | D23: =IF($R$3>0,$R$3/D3,0) -> 0 | E23: 0 | F23: 0 | G23: =IF($R$3>0,$R$3/G3,0) -> 0 | H23: 0 | I23: 0 | J23: 0 | K23: 0 | L23: 0 | M23: 0 | N23: 0 | O23: 0 | P23: 0 | Q23: 0 | R23: 0 | S23: 0 | T23: 0 | U23: 0 | V23: 0
A24: 17 | B24: NA | C24: =IF($S$3>0,$S$3/C3,0) -> 0 | D24: =IF($S$3>0,$S$3/D3,0) -> 0 | E24: 0 | F24: 0 | G24: 0 | H24: 0 | I24: 0 | J24: 0 | K24: 0 | L24: 0 | M24: 0 | N24: 0 | O24: 0 | P24: 0 | Q24: 0 | R24: 0 | S24: 0 | T24: 0 | U24: 0 | V24: 0
A25: 18 | B25: NA | C25: =IF($T$3>0,$T$3/C3,0) -> 0 | D25: =IF($T$3>0,$T$3/D3,0) -> 0 | E25: 0 | F25: 0 | G25: 0 | H25: 0 | I25: 0 | J25: 0 | K25: 0 | L25: 0 | M25: 0 | N25: 0 | O25: 0 | P25: 0 | Q25: 0 | R25: 0 | S25: 0 | T25: 0 | U25: 0 | V25: 0
A26: 19 | B26: NA | C26: =IF($U$3>0,$U$3/C3,0) -> 0 | D26: =IF($U$3>0,$U$3/D3,0) -> 0 | E26: 0 | F26: 0 | G26: 0 | H26: 0 | I26: 0 | J26: 0 | K26: 0 | L26: 0 | M26: 0 | N26: 0 | O26: 0 | P26: 0 | Q26: 0 | R26: 0 | S26: 0 | T26: 0 | U26: 0 | V26: 0
A27: 20 | B27: NA | C27: =IF($V$3>0,$V$3/C3,0) -> 0 | D27: =IF($V$3>0,$V$3/D3,0) -> 0 | E27: 0 | F27: 0 | G27: 0 | H27: 0 | I27: 0 | J27: 0 | K27: 0 | L27: 0 | M27: 0 | N27: 0 | O27: 0 | P27: 0 | Q27: 0 | R27: 0 | S27: 0 | T27: 0 | U27: 0 | V27: 0
B29: FARM
C30: =C7 -> Ground Beef 80-89% | D30: =D7 -> Bone-In Ribeye Steak | E30: Bnls Ribeye Roast | F30: Bnls Ribeye Steak | G30: Eye Of Round Roast | H30: Sirloin Tip Steak | I30: NA | J30: NA | K30: NA | L30: NA | M30: NA | N30: NA | O30: NA | P30: NA | Q30: NA | R30: NA | S30: NA | T30: NA | U30: NA | V30: NA
A31: 1 | B31: =B8 -> Ground Beef 80-89% | C31: =IF($C$4>0,$C$4/C4,0) -> 1 | D31: =IF($C$4>0,$C$4/D4,0) -> 0.4166666667 | E31: 0.3571428571 | F31: 0.3846153846 | G31: 0.8333333333 | H31: 0.7142857143
A32: 2 | B32: =B9 -> Bone-In Ribeye Steak | C32: =IF($D$4>0,$D$4/C4,0) -> 2.4 | D32: =IF($D$4>0,$D$4/D4,0) -> 1 | E32: 0.8571428571 | F32: 0.9230769231 | G32: 2 | H32: 1.714285714
A33: 3 | B33: Bnls Ribeye Roast | C33: =IF($E$4>0,$E$4/C4,0) -> 2.8 | D33: =IF($E$4>0,$E$4/D4,0) -> 1.166666667 | E33: 1 | F33: 1.076923077 | G33: 2.333333333 | H33: 2
A34: 4 | B34: Bnls Ribeye Steak | C34: =IF($F$4>0,$F$4/C4,0) -> 2.6 | D34: =IF($F$4>0,$F$4/D4,0) -> 1.083333333 | E34: 0.9285714286 | F34: 1 | G34: 2.166666667 | H34: 1.857142857
A35: 5 | B35: Eye Of Round Roast | C35: =IF($G$4>0,$G$4/C4,0) -> 1.2 | D35: =IF($G$4>0,$G$4/D4,0) -> 0.5 | E35: 0.4285714286 | F35: 0.4615384615 | G35: 1 | H35: 0.8571428571
A36: 6 | B36: Sirloin Tip Steak | C36: =IF($H$4>0,$H$4/C4,0) -> 1.4 | D36: =IF($H$4>0,$H$4/D4,0) -> 0.5833333333 | E36: 0.5 | F36: 0.5384615385 | G36: 1.166666667 | H36: 1
A37: 7 | B37: NA | C37: =IF($I$4>0,$I$4/C4,0) -> 0 | D37: =IF($I$4>0,$I$4/D4,0) -> 0 | E37: 0 | F37: 0 | G37: 0 | H37: 0 | I37: 0 | J37: 0 | K37: 0 | L37: 0 | M37: 0 | N37: 0 | O37: 0 | P37: 0 | Q37: 0 | R37: 0 | S37: 0 | T37: 0 | U37: 0 | V37: 0
A38: 8 | B38: NA | C38: =IF($J$4>0,$J$4/C4,0) -> 0 | D38: =IF($J$4>0,$J$4/D4,0) -> 0 | E38: 0 | F38: 0 | G38: 0 | H38: 0 | I38: 0 | J38: 0 | K38: 0 | L38: 0 | M38: 0 | N38: 0 | O38: 0 | P38: 0 | Q38: 0 | R38: 0 | S38: 0 | T38: 0 | U38: 0 | V38: 0
A39: 9 | B39: NA | C39: =IF($K$4>0,$K$4/C4,0) -> 0 | D39: =IF($K$4>0,$K$4/D4,0) -> 0 | E39: 0 | F39: 0 | G39: 0 | H39: 0 | I39: 0 | J39: 0 | K39: 0 | L39: 0 | M39: 0 | N39: 0 | O39: 0 | P39: 0 | Q39: 0 | R39: 0 | S39: 0 | T39: 0 | U39: 0 | V39: 0
A40: 10 | B40: NA | C40: =IF($L$4>0,$L$4/C4,0) -> 0 | D40: =IF($L$4>0,$L$4/D4,0) -> 0 | E40: 0 | F40: 0 | G40: 0 | H40: 0 | I40: 0 | J40: 0 | K40: 0 | L40: 0 | M40: 0 | N40: 0 | O40: 0 | P40: 0 | Q40: 0 | R40: 0 | S40: 0 | T40: 0 | U40: 0 | V40: 0
A41: 11 | B41: NA | C41: =IF($M$4>0,$M$4/C4,0) -> 0 | D41: =IF($M$4>0,$M$4/D4,0) -> 0 | E41: 0 | F41: 0 | G41: 0 | H41: 0 | I41: 0 | J41: 0 | K41: 0 | L41: 0 | M41: 0 | N41: 0 | O41: 0 | P41: 0 | Q41: 0 | R41: 0 | S41: 0 | T41: 0 | U41: 0 | V41: 0
A42: 12 | B42: NA | C42: =IF($N$4>0,$N$4/C4,0) -> 0 | D42: =IF($N$4>0,$N$4/D4,0) -> 0 | E42: 0 | F42: 0 | G42: 0 | H42: 0 | I42: 0 | J42: 0 | K42: 0 | L42: 0 | M42: 0 | N42: 0 | O42: 0 | P42: 0 | Q42: 0 | R42: 0 | S42: 0 | T42: 0 | U42: 0 | V42: 0
A43: 13 | B43: NA | C43: =IF($O$4>0,$O$4/C4,0) -> 0 | D43: =IF($O$4>0,$O$4/D4,0) -> 0 | E43: 0 | F43: 0 | G43: 0 | H43: 0 | I43: 0 | J43: 0 | K43: 0 | L43: 0 | M43: 0 | N43: 0 | O43: 0 | P43: 0 | Q43: 0 | R43: 0 | S43: 0 | T43: 0 | U43: 0 | V43: 0
A44: 14 | B44: NA | C44: =IF($P$4>0,$P$4/C4,0) -> 0 | D44: =IF($P$4>0,$P$4/D4,0) -> 0 | E44: 0 | F44: 0 | G44: 0 | H44: 0 | I44: 0 | J44: 0 | K44: 0 | L44: 0 | M44: 0 | N44: 0 | O44: 0 | P44: 0 | Q44: 0 | R44: 0 | S44: 0 | T44: 0 | U44: 0 | V44: 0
A45: 15 | B45: NA | C45: =IF($Q$4>0,$Q$4/C4,0) -> 0 | D45: =IF($Q$4>0,$Q$4/D4,0) -> 0 | E45: 0 | F45: 0 | G45: 0 | H45: 0 | I45: 0 | J45: 0 | K45: 0 | L45: 0 | M45: 0 | N45: 0 | O45: 0 | P45: 0 | Q45: 0 | R45: 0 | S45: 0 | T45: 0 | U45: 0 | V45: 0
A46: 16 | B46: NA | C46: =IF($R$4>0,$R$4/C4,0) -> 0 | D46: =IF($R$4>0,$R$4/D4,0) -> 0 | E46: 0 | F46: 0 | G46: 0 | H46: 0 | I46: 0 | J46: 0 | K46: 0 | L46: 0 | M46: 0 | N46: 0 | O46: 0 | P46: 0 | Q46: 0 | R46: 0 | S46: 0 | T46: 0 | U46: 0 | V46: 0
A47: 17 | B47: NA | C47: =IF($S$4>0,$S$4/C4,0) -> 0 | D47: =IF($S$4>0,$S$4/D4,0) -> 0 | E47: 0 | F47: 0 | G47: 0 | H47: 0 | I47: 0 | J47: 0 | K47: 0 | L47: 0 | M47: 0 | N47: 0 | O47: 0 | P47: 0 | Q47: 0 | R47: 0 | S47: 0 | T47: 0 | U47: 0 | V47: 0
A48: 18 | B48: NA | C48: =IF($T$4>0,$T$4/C4,0) -> 0 | D48: =IF($T$4>0,$T$4/D4,0) -> 0 | E48: 0 | F48: 0 | G48: 0 | H48: 0 | I48: 0 | J48: 0 | K48: 0 | L48: 0 | M48: 0 | N48: 0 | O48: 0 | P48: 0 | Q48: 0 | R48: 0 | S48: 0 | T48: 0 | U48: 0 | V48: 0
A49: 19 | B49: NA | C49: =IF($U$4>0,$U$4/C4,0) -> 0 | D49: =IF($U$4>0,$U$4/D4,0) -> 0 | E49: 0 | F49: 0 | G49: 0 | H49: 0 | I49: 0 | J49: 0 | K49: 0 | L49: 0 | M49: 0 | N49: 0 | O49: 0 | P49: 0 | Q49: 0 | R49: 0 | S49: 0 | T49: 0 | U49: 0 | V49: 0
A50: 20 | B50: NA | C50: =IF($V$4>0,$V$4/C4,0) -> 0 | D50: =IF($V$4>0,$V$4/D4,0) -> 0 | E50: 0 | F50: 0 | G50: 0 | H50: 0 | I50: 0 | J50: 0 | K50: 0 | L50: 0 | M50: 0 | N50: 0 | O50: 0 | P50: 0 | Q50: 0 | R50: 0 | S50: 0 | T50: 0 | U50: 0 | V50: =IF($V$4>0,$V$4/V4,0) -> 0
B52: Differences
C53: =C30 -> Ground Beef 80-89% | D53: =D30 -> Bone-In Ribeye Steak | E53: Bnls Ribeye Roast | F53: Bnls Ribeye Steak | G53: Eye Of Round Roast | H53: Sirloin Tip Steak | I53: NA | J53: NA | K53: NA | L53: NA | M53: NA | N53: NA | O53: NA | P53: NA | Q53: NA | R53: NA | S53: NA | T53: NA | U53: NA | V53: NA | W53: Sum
A54: 1 | B54: =B31 -> Ground Beef 80-89% | C54: =C8-C31 -> 0 | D54: =D8-D31 -> -0.01824978012 | E54: 0.0985915493 | F54: 0.06434398109 | G54: -0.06029579067 | H54: 0.01284109149 | W54: =SUMIF(C54:V54,"<>#DIV/0!") -> 0.09723105109
A55: 2 | B55: =B32 -> Bone-In Ribeye Steak | C55: =C9-C32 -> 0.1099337748 | D55: 0 | E55: 0.2867203219 | F55: 0.2037813524 | G55: -0.05972696246 | H55: 0.1107544141 | W55: =SUMIF(C55:V55,"<>#DIV/0!") -> 0.6514629009
A56: 3 | B56: Bnls Ribeye Roast | C56: -0.6057395143 | D56: -0.2924362357 | E56: 0 | F56: -0.09178928109 | G56: -0.6370875995 | H56: -0.404494382 | W56: -2.031547013
A57: 4 | B57: Bnls Ribeye Steak | C57: -0.3726269316 | D57: -0.1959102902 | E57: 0.08651911469 | F57: 0 | G57: -0.4448236633 | H57: -0.2375601926 | W57: -1.164401963
A58: 5 | B58: Eye Of Round Roast | C58: 0.093598234 | D58: 0.01539138083 | E58: 0.1609657948 | F58: 0.1192345811 | G58: 0 | H58: 0.0834670947 | W58: 0.4726570854
A59: 6 | B59: Sirloin Tip Steak | C59: -0.02472406181 | D59: -0.0354001759 | E59: 0.1267605634 | F59: 0.07898147442 | G59: -0.1035267349 | H59: 0 | W59: 0.04209106517
A60: 7 | B60: NA | C60: 0 | D60: 0 | E60: 0 | F60: 0 | G60: 0 | H60: 0 | I60: 0 | J60: 0 | K60: 0 | L60: 0 | M60: 0 | N60: 0 | O60: 0 | P60: 0 | Q60: 0 | R60: 0 | S60: 0 | T60: 0 | U60: 0 | V60: 0 | W60: =SUMIF(C60:V60,"<>#DIV/0!") -> 0
A61: 8 | B61: NA | C61: 0 | D61: 0 | E61: 0 | F61: 0 | G61: 0 | H61: 0 | I61: 0 | J61: 0 | K61: 0 | L61: 0 | M61: 0 | N61: 0 | O61: 0 | P61: 0 | Q61: 0 | R61: 0 | S61: 0 | T61: 0 | U61: 0 | V61: 0 | W61: 0
A62: 9 | B62: NA | C62: 0 | D62: 0 | E62: 0 | F62: 0 | G62: 0 | H62: 0 | I62: 0 | J62: 0 | K62: 0 | L62: 0 | M62: 0 | N62: 0 | O62: 0 | P62: 0 | Q62: 0 | R62: 0 | S62: 0 | T62: 0 | U62: 0 | V62: 0 | W62: 0
A63: 10 | B63: NA | C63: 0 | D63: 0 | E63: 0 | F63: 0 | G63: 0 | H63: 0 | I63: 0 | J63: 0 | K63: 0 | L63: 0 | M63: 0 | N63: 0 | O63: 0 | P63: 0 | Q63: 0 | R63: 0 | S63: 0 | T63: 0 | U63: 0 | V63: 0 | W63: 0
A64: 11 | B64: NA | C64: 0 | D64: 0 | E64: 0 | F64: 0 | G64: 0 | H64: 0 | I64: 0 | J64: 0 | K64: 0 | L64: 0 | M64: 0 | N64: 0 | O64: 0 | P64: 0 | Q64: 0 | R64: 0 | S64: 0 | T64: 0 | U64: 0 | V64: 0 | W64: 0
A65: 12 | B65: NA | C65: 0 | D65: 0 | E65: 0 | F65: 0 | G65: 0 | H65: 0 | I65: 0 | J65: 0 | K65: 0 | L65: 0 | M65: 0 | N65: 0 | O65: 0 | P65: 0 | Q65: 0 | R65: 0 | S65: 0 | T65: 0 | U65: 0 | V65: 0 | W65: 0
A66: 13 | B66: NA | C66: 0 | D66: 0 | E66: 0 | F66: 0 | G66: 0 | H66: 0 | I66: 0 | J66: 0 | K66: 0 | L66: 0 | M66: 0 | N66: 0 | O66: 0 | P66: 0 | Q66: 0 | R66: 0 | S66: 0 | T66: 0 | U66: 0 | V66: 0 | W66: 0
A67: 14 | B67: NA | C67: 0 | D67: 0 | E67: 0 | F67: 0 | G67: 0 | H67: 0 | I67: 0 | J67: 0 | K67: 0 | L67: 0 | M67: 0 | N67: 0 | O67: 0 | P67: 0 | Q67: 0 | R67: 0 | S67: 0 | T67: 0 | U67: 0 | V67: 0 | W67: 0
A68: 15 | B68: NA | C68: 0 | D68: 0 | E68: 0 | F68: 0 | G68: 0 | H68: =H22-H45 -> 0 | I68: 0 | J68: 0 | K68: 0 | L68: 0 | M68: 0 | N68: 0 | O68: 0 | P68: 0 | Q68: 0 | R68: 0 | S68: 0 | T68: 0 | U68: 0 | V68: 0 | W68: 0
A69: 16 | B69: NA | C69: 0 | D69: 0 | E69: 0 | F69: 0 | G69: 0 | H69: 0 | I69: 0 | J69: 0 | K69: 0 | L69: 0 | M69: 0 | N69: 0 | O69: 0 | P69: 0 | Q69: 0 | R69: 0 | S69: 0 | T69: 0 | U69: 0 | V69: 0 | W69: 0
A70: 17 | B70: NA | C70: 0 | D70: 0 | E70: 0 | F70: 0 | G70: 0 | H70: 0 | I70: 0 | J70: 0 | K70: 0 | L70: 0 | M70: 0 | N70: 0 | O70: 0 | P70: 0 | Q70: 0 | R70: 0 | S70: 0 | T70: 0 | U70: 0 | V70: 0 | W70: 0
A71: 18 | B71: NA | C71: 0 | D71: 0 | E71: 0 | F71: 0 | G71: 0 | H71: 0 | I71: 0 | J71: 0 | K71: 0 | L71: 0 | M71: 0 | N71: 0 | O71: 0 | P71: 0 | Q71: 0 | R71: 0 | S71: 0 | T71: 0 | U71: 0 | V71: 0 | W71: 0
A72: 19 | B72: NA | C72: 0 | D72: 0 | E72: 0 | F72: 0 | G72: 0 | H72: 0 | I72: 0 | J72: 0 | K72: 0 | L72: 0 | M72: 0 | N72: 0 | O72: 0 | P72: 0 | Q72: 0 | R72: 0 | S72: 0 | T72: 0 | U72: 0 | V72: 0 | W72: 0
A73: 20 | B73: NA | C73: 0 | D73: 0 | E73: 0 | F73: 0 | G73: 0 | H73: 0 | I73: 0 | J73: 0 | K73: 0 | L73: 0 | M73: 0 | N73: 0 | O73: 0 | P73: 0 | Q73: 0 | R73: 0 | S73: 0 | T73: 0 | U73: 0 | V73: 0 | W73: 0
B74: Total Difference | C74: =(SUM(W54:W73)+(C91-C97)) -> -21656.65051
B77: Production
C78: 1 | D78: 2 | E78: 3 | F78: 4 | G78: 5 | H78: 6 | I78: 7 | J78: 8 | K78: 9 | L78: 10 | M78: 11 | N78: 12 | O78: 13 | P78: 14 | Q78: 15 | R78: 16 | S78: 17 | T78: 18 | U78: 19 | V78: 20
B79: Product | C79: =C53 -> Ground Beef 80-89% | D79: =D53 -> Bone-In Ribeye Steak | E79: Bnls Ribeye Roast | F79: Bnls Ribeye Steak | G79: =G53 -> Eye Of Round Roast | H79: Sirloin Tip Steak | I79: NA | J79: NA | K79: NA | L79: NA | M79: NA | N79: NA | O79: NA | P79: NA | Q79: NA | R79: NA | S79: NA | T79: NA | U79: NA | V79: NA
B80: Units Produce | C80: ='Step 2'!$D$4 -> 2000 | D80: ='Step 2'!$D$5 -> 40 | E80: ='Step 2'!$D$6 -> 150 | F80: ='Step 2'!$D$7 -> 100 | G80: ='Step 2'!$D$8 -> 75 | H80: ='Step 2'!$D$9 -> 300 | I80: ='Step 2'!$D$10 -> 0 | J80: ='Step 2'!$D$11 -> 0 | K80: ='Step 2'!$D$12 -> 0 | L80: ='Step 2'!$D$13 -> 0 | M80: ='Step 2'!$D$14 -> 0 | N80: ='Step 2'!$D$15 -> 0 | O80: ='Step 2'!$D$16 -> 0 | P80: ='Step 2'!$D$17 -> 0 | Q80: ='Step 2'!$D$18 -> 0 | R80: ='Step 2'!$D$19 -> 0 | S80: ='Step 2'!$D$20 -> 0 | T80: ='Step 2'!$D$21 -> 0 | U80: ='Step 2'!$D$22 -> 0 | V80: ='Step 2'!$D$23 -> 0
B81: Units Expected to Sell | C81: ='Step 2'!$E$4 -> 1900 | D81: ='Step 2'!$E$5 -> 40 | E81: ='Step 2'!$E$6 -> 150 | F81: ='Step 2'!$E$7 -> 95 | G81: ='Step 2'!$E$8 -> 70 | H81: ='Step 2'!$E$9 -> 250 | I81: ='Step 2'!$E$10 -> 0 | J81: ='Step 2'!$E$11 -> 0 | K81: ='Step 2'!$E$12 -> 0 | L81: ='Step 2'!$E$13 -> 0 | M81: ='Step 2'!$E$14 -> 0 | N81: ='Step 2'!$E$15 -> 0 | O81: ='Step 2'!$E$16 -> 0 | P81: ='Step 2'!$E$17 -> 0 | Q81: ='Step 2'!$E$18 -> 0 | R81: ='Step 2'!$E$19 -> 0 | S81: ='Step 2'!$E$20 -> 0 | T81: ='Step 2'!$E$21 -> 0 | U81: ='Step 2'!$E$22 -> 0 | V81: ='Step 2'!$E$23 -> 0
B83: Revenue From Sales
C84: 1 | D84: 2 | E84: 3 | F84: 4 | G84: 5 | H84: 6 | I84: 7 | J84: 8 | K84: 9 | L84: 10 | M84: 11 | N84: 12 | O84: 13 | P84: 14 | Q84: 15 | R84: 16 | S84: 17 | T84: 18 | U84: 19 | V84: 20
C85: =C53 -> Ground Beef 80-89% | D85: =D53 -> Bone-In Ribeye Steak | E85: Bnls Ribeye Roast | F85: Bnls Ribeye Steak | G85: Eye Of Round Roast | H85: Sirloin Tip Steak | I85: NA | J85: NA | K85: NA | L85: NA | M85: NA | N85: NA | O85: NA | P85: NA | Q85: NA | R85: NA | S85: NA | T85: NA | U85: NA | V85: =V53 -> NA
B86: Units Produced | C86: =C80 -> 2000 | D86: =D80 -> 40 | E86: 150 | F86: 100 | G86: 75 | H86: 300 | I86: 0 | J86: 0 | K86: 0 | L86: 0 | M86: 0 | N86: 0 | O86: 0 | P86: 0 | Q86: 0 | R86: 0 | S86: 0 | T86: 0 | U86: 0 | V86: 0
B87: Price to Charge | C87: =C4 -> 5 | D87: 12 | E87: 14 | F87: 13 | G87: 6 | H87: 7 | I87: 0 | J87: 0 | K87: 0 | L87: 0 | M87: 0 | N87: 0 | O87: 0 | P87: 0 | Q87: 0 | R87: 0 | S87: 0 | T87: 0 | U87: 0 | V87: 0
B88: Sale % | C88: =IF(C86>0,(C81/C80),0) -> 0.95 | D88: =IF(D86>0,(D81/D80),0) -> 1 | E88: 1 | F88: 0.95 | G88: 0.9333333333 | H88: 0.8333333333 | I88: =IF(I86>0,(I81/I80),0) -> 0 | J88: 0 | K88: 0 | L88: 0 | M88: 0 | N88: 0 | O88: 0 | P88: 0 | Q88: 0 | R88: 0 | S88: 0 | T88: 0 | U88: 0 | V88: 0
B89: Revenue | C89: =PRODUCT(C86:C88) -> 9500 | D89: =PRODUCT(D86:D88) -> 480 | E89: 2100 | F89: 1235 | G89: 420 | H89: 1750 | I89: 0 | J89: 0 | K89: 0 | L89: 0 | M89: 0 | N89: 0 | O89: 0 | P89: 0 | Q89: 0 | R89: 0 | S89: 0 | T89: 0 | U89: 0 | V89: =PRODUCT(V86:V88) -> 0
B91: Total Revenue | C91: =SUM(C89:V89) -> 15485
B94: Previous Year Revenue | C94: =IF('Step 3'!H14>0,'Step 3'!H14,J94) -> 15045 | I94: Old Price Rev | J94: =SUMPRODUCT(C80:V80,C88:V88,C101:V101) -> 15045
B95: % increase to Breakeven | C95: =IF('Step 3'!H14>0,0,IF(J96>0,J96,0)) -> 1.244159521 | I95: Expected Cost | J95: =IF('Step 3'!H14>0,'Step 3'!H14,'Step 3'!H3) -> 33763.38
B96: Wanted % Increase | C96: ='Step 3'!H4 -> 0.1 | I96: % Diff | J96: =(J95-J94)/J94 -> 1.244159521
B97: Wanted Revenue | C97: =IF(C98>0,C98,(C94*(1+C95))*(1+C96)) -> 37139.718
B98: Wanted Revenue Determined Elsewhere | C98: ='Step 3'!H24 -> 0
B99: Prices
C100: =C85 -> Ground Beef 80-89% | D100: =D85 -> Bone-In Ribeye Steak | E100: Bnls Ribeye Roast | F100: Bnls Ribeye Steak | G100: Eye Of Round Roast | H100: Sirloin Tip Steak | I100: NA | J100: NA | K100: NA | L100: NA | M100: NA | N100: NA | O100: NA | P100: NA | Q100: NA | R100: NA | S100: NA | T100: NA | U100: NA | V100: NA
B101: Previous Year price | C101: ='Step 2'!$F$4 -> 5 | D101: ='Step 2'!$F$5 -> 21 | E101: ='Step 2'!$F$6 -> 9.5 | F101: ='Step 2'!$F$7 -> 11 | G101: ='Step 2'!$F$8 -> 10.5 | H101: ='Step 2'!$F$9 -> 6 | I101: ='Step 2'!$F$10 -> 0 | J101: ='Step 2'!$F$11 -> 0 | K101: ='Step 2'!$F$12 -> 0 | L101: ='Step 2'!$F$13 -> 0 | M101: ='Step 2'!$F$14 -> 0 | N101: ='Step 2'!$F$15 -> 0 | O101: ='Step 2'!$F$16 -> 0 | P101: ='Step 2'!$F$17 -> 0 | Q101: ='Step 2'!$F$18 -> 0 | R101: ='Step 2'!$F$19 -> 0 | S101: ='Step 2'!$F$20 -> 0 | T101: ='Step 2'!$F$21 -> 0 | U101: ='Step 2'!$F$22 -> 0 | V101: ='Step 2'!$F$23 -> 0
B102: Difference | C102: =C87-C101 -> 0 | D102: =D87-D101 -> -9 | E102: =E87-E101 -> 4.5 | F102: 2 | G102: -4.5 | H102: 1 | I102: 0 | J102: 0 | K102: 0 | L102: 0 | M102: 0 | N102: 0 | O102: 0 | P102: 0 | Q102: 0 | R102: 0 | S102: 0 | T102: 0 | U102: 0 | V102: 0
B105: Price to Charge
B106: Product | C106: =C100 -> Ground Beef 80-89% | D106: =D100 -> Bone-In Ribeye Steak | E106: Bnls Ribeye Roast | F106: Bnls Ribeye Steak | G106: Eye Of Round Roast | H106: Sirloin Tip Steak | I106: NA | J106: NA | K106: NA | L106: NA | M106: NA | N106: NA | O106: NA | P106: NA | Q106: NA | R106: NA | S106: NA | T106: NA | U106: NA | V106: NA
B107: Price | C107: =C4 -> 5 | D107: =D4 -> 12 | E107: 14 | F107: 13 | G107: 6 | H107: 7 | I107: 0 | J107: 0 | K107: 0 | L107: 0 | M107: 0 | N107: 0 | O107: 0 | P107: 0 | Q107: 0 | R107: 0 | S107: 0 | T107: 0 | U107: 0 | V107: 0
C114: =VLOOKUP(C2,'Step 1'!$C$3:$E$1048576,3,FALSE) -> 5 | D114: =VLOOKUP(D2,'Step 1'!$C$3:$E$1048576,3,FALSE) -> 12 | E114: =VLOOKUP(E2,'Step 1'!$C$3:$E$1048576,3,FALSE) -> 10 | F114: =VLOOKUP(F2,'Step 1'!$C$3:$E$1048576,3,FALSE) -> 11 | G114: =VLOOKUP(G2,'Step 1'!$C$3:$E$1048576,3,FALSE) -> 6 | H114: =VLOOKUP(H2,'Step 1'!$C$3:$E$1048576,3,FALSE) -> 7 | I114: =VLOOKUP(I2,'Step 1'!$C$3:$E$1048576,3,FALSE) -> 0 | J114: =VLOOKUP(J2,'Step 1'!$C$3:$E$1048576,3,FALSE) -> 0 | K114: =VLOOKUP(K2,'Step 1'!$C$3:$E$1048576,3,FALSE) -> 0 | L114: =VLOOKUP(L2,'Step 1'!$C$3:$E$1048576,3,FALSE) -> 0 | M114: =VLOOKUP(M2,'Step 1'!$C$3:$E$1048576,3,FALSE) -> 0 | N114: =VLOOKUP(N2,'Step 1'!$C$3:$E$1048576,3,FALSE) -> 0 | O114: =VLOOKUP(O2,'Step 1'!$C$3:$E$1048576,3,FALSE) -> 0 | P114: =VLOOKUP(P2,'Step 1'!$C$3:$E$1048576,3,FALSE) -> 0 | Q114: =VLOOKUP(Q2,'Step 1'!$C$3:$E$1048576,3,FALSE) -> 0 | R114: =VLOOKUP(R2,'Step 1'!$C$3:$E$1048576,3,FALSE) -> 0 | S114: =VLOOKUP(S2,'Step 1'!$C$3:$E$1048576,3,FALSE) -> 0 | T114: =VLOOKUP(T2,'Step 1'!$C$3:$E$1048576,3,FALSE) -> 0 | U114: =VLOOKUP(U2,'Step 1'!$C$3:$E$1048576,3,FALSE) -> 0 | V114: =VLOOKUP(V2,'Step 1'!$C$3:$E$1048576,3,FALSE) -> 0
O119: Intro
O120: Step 1
O121: Step 2
O122: Step 3
L131: Step 4 Instructions
L132: A) Click Price My Products
C133: Product | D133: Your Price to Charge | E133: Average National Price | F133: Your Previous Price | G133: Price Difference from National Average | H133: Price Difference from Your Previous Price | I133: Percentage of Product Sold | J133: Total Product Revenue | L133: B) The prices for your products will appear below highlighted Green
B134: 1 | C134: =C2 -> Ground Beef 80-89% | D134: =C87 -> 5 | E134: =C3 -> 4.53 | F134: =C101 -> 5 | G134: =D134-E134 -> 0.47 | H134: =D134-F134 -> 0 | I134: =C88 -> 0.95 | J134: =C89 -> 9500 | L134: C) Check the "Total Revenue" cell in the bottom right to confirm it is near the revenue determined in Step 3
B135: 2 | C135: =D2 -> Bone-In Ribeye Steak | D135: =D87 -> 12 | E135: =D3 -> 11.37 | F135: =D101 -> 21 | G135: 0.63 | H135: =D135-F135 -> -9 | I135: =D88 -> 1 | J135: =D89 -> 480
B136: 3 | C136: =E2 -> Bnls Ribeye Roast | D136: =E87 -> 14 | E136: =E3 -> 9.94 | F136: =E101 -> 9.5 | G136: 4.06 | H136: 4.5 | I136: =E88 -> 1 | J136: =E89 -> 2100 | L136: To reset numbers to what they were the moment you clicked "Price My Products," click the Reset Model Button
B137: 4 | C137: =F2 -> Bnls Ribeye Steak | D137: =F87 -> 13 | E137: =F3 -> 10.09 | F137: =F101 -> 11 | G137: 2.91 | H137: 2 | I137: =F88 -> 0.95 | J137: =F89 -> 1235
B138: 5 | C138: =G2 -> Eye Of Round Roast | D138: =G87 -> 6 | E138: =G3 -> 5.86 | F138: =G101 -> 10.5 | G138: 0.14 | H138: -4.5 | I138: =G88 -> 0.9333333333 | J138: =G89 -> 420 | L138: Note: the total revenue might not be an exact match to what was determined in Step 3, but should be within a few percentage points of it. This is due to prices being in cents whereas the true breakeven will be in fractions of cents. As long as the percentage difference is positive, the prices should work.
B139: 6 | C139: =H2 -> Sirloin Tip Steak | D139: =H87 -> 7 | E139: =H3 -> 6.23 | F139: =H101 -> 6 | G139: =D139-E139 -> 0.77 | H139: =D139-F139 -> 1 | I139: =H88 -> 0.8333333333 | J139: =H89 -> 1750
B140: 7 | C140: =I2 -> NA | D140: =I87 -> 0 | E140: =I3 -> 0 | F140: =I101 -> 0 | G140: 0 | H140: 0 | I140: =I88 -> 0 | J140: =I89 -> 0
B141: 8 | C141: =J2 -> NA | D141: =J87 -> 0 | E141: =J3 -> 0 | F141: =J101 -> 0 | G141: 0 | H141: 0 | I141: =J88 -> 0 | J141: =J89 -> 0
B142: 9 | C142: =K2 -> NA | D142: =K87 -> 0 | E142: =K3 -> 0 | F142: =K101 -> 0 | G142: 0 | H142: 0 | I142: =K88 -> 0 | J142: =K89 -> 0
B143: 10 | C143: =L2 -> NA | D143: =L87 -> 0 | E143: =L3 -> 0 | F143: =L101 -> 0 | G143: 0 | H143: 0 | I143: =L88 -> 0 | J143: =L89 -> 0 | L143: Thank you for using the Product Pricing Sheet created by The University of Tennessee Institute of Agriculture's Center of Farm Management. If you are receiving an Error during Step 4, try downloading a new version of it and filling it out again. There is always a possibility of software glitches.
B144: 11 | C144: =M2 -> NA | D144: =M87 -> 0 | E144: =M3 -> 0 | F144: =M101 -> 0 | G144: 0 | H144: 0 | I144: =M88 -> 0 | J144: =M89 -> 0
B145: 12 | C145: =N2 -> NA | D145: =N87 -> 0 | E145: =N3 -> 0 | F145: =N101 -> 0 | G145: 0 | H145: 0 | I145: =N88 -> 0 | J145: =N89 -> 0
B146: 13 | C146: =O2 -> NA | D146: =O87 -> 0 | E146: =O3 -> 0 | F146: =O101 -> 0 | G146: 0 | H146: 0 | I146: =O88 -> 0 | J146: =O89 -> 0
B147: 14 | C147: =P2 -> NA | D147: =P87 -> 0 | E147: =P3 -> 0 | F147: =P101 -> 0 | G147: 0 | H147: 0 | I147: =P88 -> 0 | J147: =P89 -> 0
B148: 15 | C148: =Q2 -> NA | D148: =Q87 -> 0 | E148: =Q3 -> 0 | F148: =Q101 -> 0 | G148: 0 | H148: 0 | I148: =Q88 -> 0 | J148: =Q89 -> 0 | L148: If after redownloading, you are still receiving errors, please contact Ty Wolaver at
B149: 16 | C149: =R2 -> NA | D149: =R87 -> 0 | E149: =R3 -> 0 | F149: =R101 -> 0 | G149: 0 | H149: 0 | I149: =R88 -> 0 | J149: =R89 -> 0 | L149: tyw@utk.edu
B150: 17 | C150: =S2 -> NA | D150: =S87 -> 0 | E150: =S3 -> 0 | F150: =S101 -> 0 | G150: 0 | H150: 0 | I150: =S88 -> 0 | J150: =S89 -> 0 | L150: Thank you,
B151: 18 | C151: =T2 -> NA | D151: =T87 -> 0 | E151: =T3 -> 0 | F151: =T101 -> 0 | G151: 0 | H151: 0 | I151: =T88 -> 0 | J151: =T89 -> 0 | L151: Ty Wolaver
B152: 19 | C152: =U2 -> NA | D152: =U87 -> 0 | E152: =U3 -> 0 | F152: =U101 -> 0 | G152: 0 | H152: 0 | I152: =U88 -> 0 | J152: =U89 -> 0 | L152: Extension Specialist - Farm Management
B153: 20 | C153: =V2 -> NA | D153: =V87 -> 0 | E153: =V3 -> 0 | F153: =V101 -> 0 | G153: 0 | H153: 0 | I153: =V88 -> 0 | J153: =V89 -> 0 | L153: Center of Farm Management
H154: Total Revenue | J154: =SUM(J134:J153) -> 15485 | L154: 2621 Morgan Circle Dr.
G155: % Difference from Desired Revenue | J155: =(J154-(IF('Step 3'!H24>0,'Step 3'!H24,'Step 3'!H16)))/'Step 3'!H16 -> -0.5830609161 | L155: Knoxville, TN 37996
L156: https://farmmanagement.tennessee.edu

Sheet Reference (hidden)

Sheet Sheet4 (hidden)
B3: Column1 | C3: Column2 | D3: Column3 | E3: Column4 | F3: Column5 | G3: Column6 | H3: Column7 | I3: Column8 | J3: Column9 | K3: Column10 | L3: Column11 | M3: Column12 | N3: Column13 | O3: Column14 | P3: Column15 | Q3: Column16 | R3: Column17 | S3: Column18
B4: [image] | C4: National Retail Report - Beef | D4: null | E4: null | F4: null | G4: null | H4: null | I4: null | J4: null | K4: null | L4: null | M4: null | N4: null | O4: null | P4: null | Q4: Fri. May 3, 2024 | R4: null | S4: null
B5: null | C5: (prices in dollars per pound) | D5: null | E5: Advertised Prices for Beef at Major Retail Supermarket Outlets ending during the period of 05/03 thru 05/09 | F5: null | G5: null | H5: null | I5: null | J5: null | K5: null | L5: null | M5: null | N5: null | O5: null | P5: null | Q5: null | R5: null | S5: null
B6: null | C6: NATIONAL SUMMARY | D6: null | E6: null | F6: null | G6: null | H6: null | I6: null | J6: This week in Beef Retail | K6: null | L6: null | M6: null | N6: null | O6: null | P6: null | Q6: null | R6: null | S6: null
C7: THIS WEEK | D7: null | E7: LAST WEEK | F7: null | G7: LAST YEAR | H7: null | I7: null | J7: This week in beef retail the Feature Rate decreased by 4.4 percent and the Special Rate decreased | K7: null | L7: null | M7: null | N7: null | O7: null | P7: null | Q7: null | R7: null | S7: null
J8: by 2.3 percent. The Activity Index showed a 17.8 percent decrease. Cuts from the Rib showed the
J9: only increase in ad space while cuts from the Chuck, Round, Loin, Brisket, and Groud Beef all showed
J10: a decrease in ad space compared to last week.
B11: Outlets | C11: 29200 | D11: null | E11: 29200 | F11: null | G11: 29200 | H11: null | I11: null | J11: null | K11: null | L11: null | M11: null | N11: null | O11: null | P11: null | Q11: null | R11: null | S11: null
B12: Feature Rate (1/) | C12: 0.649 | D12: null | E12: 0.693 | F12: null | G12: 0.637 | H12: null | I12: null | J12: null | K12: null | L12: null | M12: null | N12: null | O12: null | P12: null | Q12: null | R12: null | S12: null
B13: Special Rate (2/) | C13: null | D13: 0.078 | E13: 0.101 | F13: null | G13: 0.165 | H13: null | I13: null | J13: null | K13: null | L13: null | M13: null | N13: null | O13: null | P13: null | Q13: null | R13: null | S13: null
B14: Activity Index (3/) | C14: 65370 | D14: null | E14: 79510 | F14: null | G14: 76140 | H14: null | I14: null | J14: null | K14: null | L14: null | M14: null | N14: null | O14: null | P14: null | Q14: null | R14: null | S14: null
B15: null | C15: Stores | D15: Wtd Avg | E15: Stores | F15: Wtd Avg | G15: Stores | H15: Wtd Avg | I15: null | J15: null | K15: null | L15: null | M15: null | N15: null | O15: null | P15: null | Q15: null | R15: null | S15: null
B16: Bone-In Ribeye Roast | C16: 120 | D16: 10.63 | E16: null | F16: null | G16: 30 | H16: 11.87 | I16: null | J16: null | K16: null | L16: null | M16: null | N16: null | O16: null | P16: null | Q16: null | R16: null | S16: null
B17: Bone-In Ribeye Steak | C17: 900 | D17: 8.78 | E17: 3050 | F17: 10.85 | G17: 4280 | H17: 10.05 | I17: null | J17: null | K17: null | L17: null | M17: null | N17: null | O17: null | P17: null | Q17: null | R17: null | S17: null
B18: Bnls Ribeye Roast | C18: 1040 | D18: 9.6 | E18: 600 | F18: 12.25 | G18: 250 | H18: 10.89 | I18: null | J18: null | K18: null | L18: null | M18: null | N18: null | O18: null | P18: null | Q18: null | R18: null | S18: null
B19: Bnls Ribeye Steak | C19: 3090 | D19: 12 | E19: 880 | F19: 19.47 | G19: 3280 | H19: 11.79 | I19: null | J19: null | K19: Acitivity Index: 2 Week Comparison | L19: null | M19: null | N19: null | O19: null | P19: null | Q19: null | R19: null | S19: null
B20: T-Bone Steak | C20: 3710 | D20: 9.15 | E20: 4170 | F20: 8.89 | G20: 3040 | H20: 9.16 | I20: null | J20: null | K20: null | L20: null | M20: null | N20: null | O20: null | P20: null | Q20: null | R20: null | S20: null
B21: Porterhouse Steak | C21: 3690 | D21: 11.31 | E21: 2360 | F21: 11.01 | G21: 690 | H21: 10.67 | I21: null | J21: null | K21: null | L21: null | M21: null | N21: null | O21: null | P21: null | Q21: null | R21: null | S21: null
B22: Tenderloin | C22: 80 | D22: 11.72 | E22: 340 | F22: 14.55 | G22: 90 | H22: 14.88 | I22: null | J22: null | K22: RIB_ACTIVITY | L22: CHUCK_ACTIVITY | M22: null | N22: null | O22: null | P22: ROUND_ACTIVITY | Q22: null | R22: null | S22: null
B23: Filet Mignon | C23: 30 | D23: 10.91 | E23: 10 | F23: 12.99 | G23: 110 | H23: 10.71 | I23: null | J23: null | K23: LOIN_ACTIVITY | L23: BRISKET_ACTIVITY | M23: null | N23: null | O23: null | P23: null | Q23: null | R23: null | S23: null
B24: Loin, Bnls | C24: 60 | D24: 10.99 | E24: 520 | F24: 10.49 | G24: 90 | H24: 4.99 | I24: null | J24: null | K24: null | L24: null | M24: null | N24: null | O24: null | P24: null | Q24: null | R24: null | S24: null
B25: Bone-In Strip Steak | C25: 960 | D25: 9.52 | E25: 1670 | F25: 8.07 | G25: 1850 | H25: 7.17 | I25: null | J25: 24K | K25: null | L25: null | M25: null | N25: null | O25: null | P25: null | Q25: null | R25: null | S25: null
B26: Bnls New York Strip Steak | C26: 1980 | D26: 12.16 | E26: 3980 | F26: 11.8 | G26: 2770 | H26: 10.05 | I26: null | J26: null | K26: null | L26: null | M26: null | N26: null | O26: null | P26: null | Q26: null | R26: null | S26: null
B27: Beef Backribs | C27: null | D27: null | E27: 100 | F27: 3.96 | G27: 390 | H27: 6.13 | I27: null | J27: null | K27: null | L27: null | M27: null | N27: null | O27: null | P27: null | Q27: null | R27: null | S27: null
B28: Sirloin Roast | C28: 130 | D28: 6.99 | E28: 80 | F28: 5.78 | G28: null | H28: null | I28: null | J28: 20K | K28: null | L28: null | M28: null | N28: null | O28: null | P28: null | Q28: null | R28: null | S28: null
B29: Sirloin Steak | C29: 410 | D29: 8.57 | E29: 40 | F29: 5.49 | G29: 350 | H29: 11.89 | I29: null | J29: null | K29: null | L29: null | M29: null | N29: null | O29: null | P29: null | Q29: null | R29: null | S29: null
B30: Bnls Sirloin Roast | C30: null | D30: null | E30: 50 | F30: 8.25 | G30: 340 | H30: 4.58 | I30: null | J30: null | K30: null | L30: null | M30: null | N30: null | O30: null | P30: null | Q30: null | R30: null | S30: null
B31: Bnls Sirloin Steak | C31: 1280 | D31: 6.35 | E31: 880 | F31: 7.91 | G31: 1770 | H31: 5.98 | I31: Activity Level | J31: 16K | K31: null | L31: null | M31: null | N31: null | O31: null | P31: null | Q31: null | R31: null | S31: null
B32: Sirloin Tip Roast | C32: 230 | D32: 5.05 | E32: 1960 | F32: 5.88 | G32: 680 | H32: 4.52 | I32: null | J32: null | K32: null | L32: null | M32: null | N32: null | O32: null | P32: null | Q32: null | R32: null | S32: null
B33: Sirloin Tip Steak | C33: 600 | D33: 6.92 | E33: 1180 | F33: 6.78 | G33: 1050 | H33: 6.46 | I33: null | J33: null | K33: null | L33: null | M33: null | N33: null | O33: null | P33: null | Q33: null | R33: null | S33: null
B34: Bnls Top Sirloin Roast | C34: 260 | D34: 6.28 | E34: 100 | F34: 5.74 | G34: 80 | H34: 4.98 | I34: null | J34: 12K | K34: null | L34: null | M34: null | N34: null | O34: null | P34: null | Q34: null | R34: null | S34: null
B35: Bnls Top Sirloin Steak | C35: 1810 | D35: 7.99 | E35: 1220 | F35: 8 | G35: 2270 | H35: 6.6 | I35: null | J35: null | K35: null | L35: null | M35: null | N35: null | O35: null | P35: null | Q35: null | R35: null | S35: null
B36: Top Round Roast | C36: 500 | D36: 5.47 | E36: 460 | F36: 5.42 | G36: 1560 | H36: 4.77 | I36: null | J36: null | K36: null | L36: null | M36: null | N36: null | O36: null | P36: null | Q36: null | R36: null | S36: null
B37: Top Round Steak | C37: 470 | D37: 6.12 | E37: 1070 | F37: 6.81 | G37: 150 | H37: 5.87 | I37: null | J37: null | K37: null | L37: null | M37: null | N37: null | O37: null | P37: null | Q37: null | R37: null | S37: null
B38: Bottom Round Roast | C38: 3340 | D38: 5.58 | E38: 4570 | F38: 5.97 | G38: 2370 | H38: 4.46 | I38: null | J38: 8K | K38: null | L38: null | M38: null | N38: null | O38: null | P38: null | Q38: null | R38: null | S38: null
B39: Bottom Round Steak | C39: 1960 | D39: 5.53 | E39: 1070 | F39: 5.33 | G39: 1520 | H39: 4.88 | I39: null | J39: null | K39: null | L39: null | M39: null | N39: null | O39: null | P39: null | Q39: null | R39: null | S39: null
B40: Eye Of Round Roast | C40: 1340 | D40: 5.52 | E40: 660 | F40: 5.46 | G40: 560 | H40: 5.16 | I40: null | J40: null | K40: null | L40: null | M40: null | N40: null | O40: null | P40: null | Q40: null | R40: null | S40: null
B41: Eye Of Round Steak | C41: 690 | D41: 6.24 | E41: 180 | F41: 5.96 | G41: 220 | H41: 6.54 | I41: null | J41: 4K | K41: null | L41: null | M41: null | N41: null | O41: null | P41: null | Q41: null | R41: null | S41: null
B42: Rump Roast | C42: 1350 | D42: 5.21 | E42: 1210 | F42: 5.56 | G42: 1300 | H42: 4.65 | I42: null | J42: null | K42: null | L42: null | M42: null | N42: null | O42: null | P42: null | Q42: null | R42: null | S42: null
B43: Rump Steak
B44: Chuck/Shldr/Arm Roast | C44: 7150 | D44: 6.48 | E44: 6720 | F44: 5.72 | G44: 6110 | H44: 5.63 | I44: null | J44: 0K | K44: null | L44: null | M44: null | N44: null | O44: null | P44: null | Q44: null | R44: null | S44: null
B45: Chuck/Shldr/Arm Steak | C45: 3560 | D45: 6.12 | E45: 3480 | F45: 5.69 | G45: 3710 | H45: 5.83 | I45: null | J45: null | K45: Apr 12 - Apr 18 | L45: Apr 19 - Apr 25 | M45: null | N45: null | O45: Apr 26 - May 2 | P45: null | Q45: May 3 - May 9 | R45: null | S45: null
B46: London Broil | C46: 1010 | D46: 5.44 | E46: 5190 | F46: 5.81 | G46: 4570 | H46: 4.75 | I46: null | J46: null | K46: null | L46: null | M46: null | N46: null | O46: null | P46: null | Q46: null | R46: null | S46: null
B47: Brisket | C47: 770 | D47: 3.71 | E47: 980 | F47: 3.68 | G47: 1240 | H47: 3.23 | I47: null | J47: null | K47: null | L47: null | M47: Explanatory Notes | N47: null | O47: null | P47: null | Q47: null | R47: null | S47: null
B48: Brisket, Flat | C48: 160 | D48: 5.9 | E48: 480 | F48: 9.49 | G48: 10 | H48: 8.79 | I48: null | J48: null | K48: null | L48: null | M48: null | N48: null | O48: null | P48: null | Q48: null | R48: null | S48: null
B49: Corned Beef Brisket | C49: null | D49: null | E49: 400 | F49: 6.21 | G49: null | H49: null | I49: null | J49: _________________________________________________________________________________________________ | K49: null | L49: null | M49: null | N49: null | O49: null | P49: null | Q49: null | R49: null | S49: null
B50: Corned Beef Flat | C50: null | D50: null | E50: 320 | F50: 7.6 | G50: null | H50: null | I50: null | J50: null | K50: null | L50: null | M50: null | N50: null | O50: null | P50: null | Q50: null | R50: null | S50: null
B51: Beef Short Ribs | C51: 970 | D51: 8.1 | E51: 1360 | F51: 8.25 | G51: 1770 | H51: 6.92 | I51: null | J51: All report information gathered from publicly available sources including store circulars, newspaper ads, | K51: null | L51: null | M51: null | N51: null | O51: null | P51: null | Q51: null | R51: null | S51: null
B52: null | C52: null | D52: null | E52: null | F52: null | G52: null | H52: null | I52: null | J52: and retailer websites. | K52: null | L52: null | M52: null | N52: null | O52: null | P52: null | Q52: null | R52: null | S52: null
B53: Flat Iron Steak | C53: 130 | D53: 9.62 | E53: 990 | F53: 11.99 | G53: 120 | H53: 8.27 | I53: null | J53: null | K53: null | L53: null | M53: null | N53: null | O53: null | P53: null | Q53: null | R53: null | S53: null
B54: null | C54: null | D54: null | E54: null | F54: null | G54: null | H54: null | I54: null | J54: '1/: FEATURE RATE: the amount of sampled stores advertising any reported beef item during the current week, | K54: null | L54: null | M54: null | N54: null | O54: null | P54: null | Q54: null | R54: null | S54: null
B55: Flank Steak | C55: 480 | D55: 9.93 | E55: 1940 | F55: 9.26 | G55: 2480 | H55: 9.09 | I55: null | J55: expressed as a 'percentage of the total sample. | K55: null | L55: null | M55: null | N55: 2/: SPECIAL RATE: the percentage of sampled stores with a no- | O55: null | P55: null | Q55: null | R55: null | S55: null
B56: Minute/Cube Steaks | C56: 1580 | D56: 7.79 | E56: 2070 | F56: 7.37 | G56: 1640 | H56: 6.71 | I56: null | J56: price promotion (e.g., buy 1, get 1 free etc.). 3/: ACTIVITY INDEX: a measure of the absolute frequency of feature | K56: null | L56: null | M56: null | N56: null | O56: null | P56: null | Q56: null | R56: null | S56: null
B57: Stew Meat | C57: 1990 | D57: 6.95 | E57: 3510 | F57: 6.86 | G57: 1790 | H57: 6.28 | I57: null | J57: activity equal to the total number of stores for each advertised beef item (e.g., a retailer with 100 outlets featuring 3 | K57: null | L57: null | M57: null | N57: null | O57: null | P57: null | Q57: null | R57: null | S57: null
B58: Ground Round | C58: 530 | D58: 5.42 | E58: 650 | F58: 4.67 | G58: 890 | H58: 4.7 | I58: null | J58: beef items has an activity index of 300). 4/: STORES/AVG: the number of advertising outlets and the weighted | K58: null | L58: null | M58: null | N58: null | O58: null | P58: null | Q58: null | R58: null | S58: null
B59: Ground Chuck | C59: 1730 | D59: 4.25 | E59: 1660 | F59: 4.56 | G59: 2400 | H59: 3.91 | I59: null | J59: average price weighted by the respective number of outlets. 5/: BRANDED: includes any advertised beef cuts | K59: null | L59: null | M59: null | N59: null | O59: null | P59: null | Q59: null | R59: null | S59: null
B60: Ground Sirloin | C60: 240 | D60: 5.54 | E60: 1360 | F60: 5.99 | G60: 720 | H60: 4.01 | I60: null | J60: marketed under a corporate trademark, or under one of Meat Grading & Certification Branch's | K60: null | L60: null | M60: null | N60: null | O60: null | P60: null | Q60: null | R60: Certified Beef | S60: null
B61: Ground Beef 90% Or More | C61: 2960 | D61: 5.37 | E61: 1740 | F61: 5.66 | G61: 3170 | H61: 6.31 | I61: null | J61: programs. 6/: NON-LABELED/OTHER: Beef cuts advertised without a USDA Quality Grade. | K61: null | L61: null | M61: null | N61: null | O61: null | P61: null | Q61: null | R61: null | S61: null
B62: Ground Beef 80-89% | C62: 6970 | D62: 4 | E62: 5720 | F62: 4.61 | G62: 6750 | H62: 3.73 | I62: null | J62: null | K62: null | L62: null | M62: null | N62: null | O62: null | P62: null | Q62: null | R62: null | S62: null
B63: Ground Beef 70-79% | C63: 970 | D63: 3.84 | E63: 2130 | F63: 3.17 | G63: 890 | H63: 3.56 | I63: null | J63: USDA-MGC Certified Programs List: | K63: null | L63: http://www.ams.usda.gov/AMSv1.0/BeefPrograms | M63: null | N63: null | O63: null | P63: null | Q63: null | R63: null | S63: null
B64: Beef Patties | C64: 3070 | D64: 6.22 | E64: 4040 | F64: 6.16 | G64: 5160 | H64: 5.78 | I64: null | J64: null | K64: null | L64: null | M64: null | N64: null | O64: null | P64: null | Q64: null | R64: null | S64: null
B65: Tri-Tip | C65: 410 | D65: 7.87 | E65: 1960 | F65: 7.58 | G65: 820 | H65: 6.77 | I65: null | J65: null | K65: null | L65: null | M65: null | N65: null | O65: null | P65: null | Q65: null | R65: null | S65: null
B66: Skirt Steak | C66: 660 | D66: 10.65 | E66: 400 | F66: 10.68 | G66: 810 | H66: 8.58 | I66: null | J66: null | K66: null | L66: null | M66: null | N66: null | O66: null | P66: null | Q66: null | R66: null | S66: null
B67: ___________________________________________________________________________________________________________________________________________________________________ | C67: null | D67: null | E67: null | F67: null | G67: null | H67: null | I67: null | J67: null | K67: null | L67: null | M67: null | N67: null | O67: null | P67: null | Q67: null | R67: null | S67: null
B68: Source: | C68: null | D68: null | E68: USDA Agricultural Marketing Service, Livestock, Poultry, and Grain Market News -- (816) 676-7000 | F68: null | G68: null | H68: null | I68: null | J68: website: | K68: https://www.marketnews.usda.gov/mnp/ls-home | L68: null | M68: null | N68: null | O68: null | P68: null | Q68: null | R68: null | S68: null
B69: Click here to also view the 'National Retail Report - Local and Organic' | C69: null | D69: null | E69: null | F69: null | G69: http://www.ams.usda.gov/mnreports/wa_lo100.txt | H69: null | I69: null | J69: null | K69: null | L69: null | M69: null | N69: null | O69: null | P69: null | Q69: null | R69: null | S69: Page 1 of 9
